[Event "Early-Titled-Tuesday-Blitz-February-06-2024"]
[Site "Chess.com"]
[Date "2024.02.06"]
[Round "3"]
[White "ukchessbomber"]
[Black "Schattman"]
[Result "1-0"]
[WhiteElo "2651"]
[BlackElo "2423"]
[TimeControl "180+1"]
[EndTime "8:27:49 PST"]
[Termination "ukchessbomber won on time"]

1. c4 {[%clk 0:03:00.9]} 1... g6 {[%clk 0:02:58.3]} 2. h3 {[%clk 0:03:01.3]}
2... Bg7 {[%clk 0:02:56.1]} 3. Nc3 {[%clk 0:03:02.2]} 3... c5 {[%clk 0:02:53.3]}
4. Nf3 {[%clk 0:03:03.1]} 4... Nc6 {[%clk 0:02:52.6]} 5. e3 {[%clk 0:03:03.7]}
5... e5 {[%clk 0:02:51.2]} 6. Be2 {[%clk 0:03:03.8]} 6... Nge7 {[%clk
0:02:50.5]} 7. O-O {[%clk 0:03:04.2]} 7... O-O {[%clk 0:02:51]} 8. d3 {[%clk
0:03:03.1]} 8... d5 {[%clk 0:02:50.4]} 9. Rb1 {[%clk 0:03:02.6]} 9... d4 {[%clk
0:02:48.2]} 10. Ne4 {[%clk 0:03:02.8]} 10... b6 {[%clk 0:02:44.5]} 11. a3 {[%clk
0:03:00.9]} 11... h6 {[%clk 0:02:44.3]} 12. b4 {[%clk 0:02:59.7]} 12... f5
{[%clk 0:02:43.6]} 13. Ned2 {[%clk 0:02:53.8]} 13... Be6 {[%clk 0:02:25.1]} 14.
e4 {[%clk 0:02:49.4]} 14... f4 {[%clk 0:02:22.2]} 15. bxc5 {[%clk 0:02:49.5]}
15... bxc5 {[%clk 0:02:21.7]} 16. Rb5 {[%clk 0:02:50.4]} 16... Qd6 {[%clk
0:02:10.6]} 17. Nb3 {[%clk 0:02:49.9]} 17... a6 {[%clk 0:02:05]} 18. Rxc5 {[%clk
0:02:25.3]} 18... Rfb8 {[%clk 0:02:02.1]} 19. Rd5 {[%clk 0:02:25.2]} 19... Bxd5
{[%clk 0:01:52.6]} 20. exd5 {[%clk 0:02:24.5]} 20... Nd8 {[%clk 0:01:43.6]} 21.
Nfd2 {[%clk 0:02:23]} 21... Nxd5 {[%clk 0:01:32.1]} 22. cxd5 {[%clk 0:02:13.9]}
22... Qxd5 {[%clk 0:01:32.2]} 23. Bf3 {[%clk 0:02:13.9]} 23... Qd6 {[%clk
0:01:31]} 24. Bxa8 {[%clk 0:02:14.8]} 24... Rxa8 {[%clk 0:01:30.8]} 25. Na5
{[%clk 0:02:11.7]} 25... Rb8 {[%clk 0:01:28.9]} 26. Nac4 {[%clk 0:02:10.1]}
26... Qc5 {[%clk 0:01:28.7]} 27. a4 {[%clk 0:02:09.8]} 27... Nf7 {[%clk
0:01:20.7]} 28. Ba3 {[%clk 0:02:10.7]} 28... Qd5 {[%clk 0:01:19.5]} 29. Qg4
{[%clk 0:02:07.6]} 29... Kh7 {[%clk 0:01:15.7]} 30. Rb1 {[%clk 0:02:07.5]} 30...
Rxb1+ {[%clk 0:01:14]} 31. Nxb1 {[%clk 0:02:07.9]} 31... Qc6 {[%clk 0:01:06.1]}
32. Nbd2 {[%clk 0:02:05.1]} 32... Qxa4 {[%clk 0:01:05.7]} 33. Qe6 {[%clk
0:02:02.2]} 33... Ng5 {[%clk 0:00:57.2]} 34. Qd7 {[%clk 0:02:01.5]} 34... Qd1+
{[%clk 0:00:51.7]} 35. Kh2 {[%clk 0:01:45]} 35... Kh8 {[%clk 0:00:43]} 36. Qc8+
{[%clk 0:01:25.7]} 36... Kh7 {[%clk 0:00:42.9]} 37. Qc7 {[%clk 0:00:58.2]} 37...
Qe2 {[%clk 0:00:35.8]} 38. Bf8 {[%clk 0:00:52.7]} 38... Ne6 {[%clk 0:00:35.4]}
39. Qf7 {[%clk 0:00:49.2]} 39... Nxf8 {[%clk 0:00:34]} 40. Ne4 {[%clk
0:00:49.8]} 40... Kh8 {[%clk 0:00:26.9]} 41. Nf6 {[%clk 0:00:48.1]} 41... Bxf6
{[%clk 0:00:18.8]} 42. Qxf6+ {[%clk 0:00:48.3]} 42... Kg8 {[%clk 0:00:18.1]} 43.
Nxe5 {[%clk 0:00:48.5]} 43... Qxf2 {[%clk 0:00:12.1]} 44. Qf7+ {[%clk
0:00:47.7]} 44... Kh8 {[%clk 0:00:11.2]} 45. Qf6+ {[%clk 0:00:43.6]} 45... Kg8
{[%clk 0:00:11]} 46. Qf7+ {[%clk 0:00:44.1]} 46... Kh8 {[%clk 0:00:11.4]} 47.
Qxf8+ {[%clk 0:00:44.7]} 47... Kh7 {[%clk 0:00:11.7]} 48. Qf7+ {[%clk
0:00:45.6]} 1-0

[Event "Early-Titled-Tuesday-Blitz-February-06-2024"]
[Site "Chess.com"]
[Date "2024.02.06"]
[Round "3"]
[White "MdChess1734"]
[Black "vaniavindy"]
[Result "1-0"]
[WhiteElo "2394"]
[BlackElo "2161"]
[TimeControl "180+1"]
[EndTime "8:27:49 PST"]
[Termination "MdChess1734 won on time"]

1. e4 {[%clk 0:02:59.8]} 1... c6 {[%clk 0:02:59.1]} 2. d4 {[%clk 0:02:58.7]}
2... d5 {[%clk 0:02:59.3]} 3. Nc3 {[%clk 0:02:53.8]} 3... dxe4 {[%clk
0:02:58.3]} 4. Nxe4 {[%clk 0:02:53.2]} 4... Bf5 {[%clk 0:02:58.6]} 5. Ng3 {[%clk
0:02:51.9]} 5... Bg6 {[%clk 0:02:58.8]} 6. h4 {[%clk 0:02:51.2]} 6... h6 {[%clk
0:02:58.1]} 7. Nh3 {[%clk 0:02:50.3]} 7... e5 {[%clk 0:02:51.6]} 8. dxe5 {[%clk
0:02:46.1]} 8... Qa5+ {[%clk 0:02:50.1]} 9. Bd2 {[%clk 0:02:33]} 9... Qxe5+
{[%clk 0:02:48.8]} 10. Be2 {[%clk 0:02:20.2]} 10... Qxb2 {[%clk 0:02:45.7]} 11.
O-O {[%clk 0:02:19.4]} 11... Qxc2 {[%clk 0:02:35.2]} 12. Qe1 {[%clk 0:02:18.3]}
12... Be7 {[%clk 0:02:33.1]} 13. Nf4 {[%clk 0:02:13.4]} 13... Nd7 {[%clk
0:02:26.7]} 14. Bd1 {[%clk 0:01:59.1]} 14... Qc5 {[%clk 0:02:15.5]} 15. Nxg6
{[%clk 0:01:46.8]} 15... fxg6 {[%clk 0:02:16.4]} 16. Bc3 {[%clk 0:01:38.8]}
16... Ngf6 {[%clk 0:01:58.9]} 17. Rc1 {[%clk 0:01:26]} 17... Qa3 {[%clk
0:01:40.5]} 18. Bc2 {[%clk 0:00:51.3]} 18... O-O-O {[%clk 0:01:36.2]} 19. Bxg6
{[%clk 0:00:50.2]} 19... Bd6 {[%clk 0:01:18.6]} 20. Nf5 {[%clk 0:00:42.4]} 20...
Bc7 {[%clk 0:01:15.9]} 21. Bb4 {[%clk 0:00:39.8]} 21... Qxa2 {[%clk 0:01:04.8]}
22. Ra1 {[%clk 0:00:25.7]} 22... Qc4 {[%clk 0:00:54.6]} 23. Rxa7 {[%clk
0:00:24.9]} 23... Qf4 {[%clk 0:00:43.8]} 24. Ra8+ {[%clk 0:00:19.3]} 24... Nb8
{[%clk 0:00:35.6]} 25. Ne7+ {[%clk 0:00:14.6]} 25... Kd7 {[%clk 0:00:33.9]} 26.
Bf5+ {[%clk 0:00:14.9]} 26... Ke8 {[%clk 0:00:24.1]} 27. Ng6+ {[%clk 0:00:14.3]}
1-0

[Event "Early-Titled-Tuesday-Blitz-February-06-2024"]
[Site "Chess.com"]
[Date "2024.02.06"]
[Round "3"]
[White "Arlo2024"]
[Black "HATilay"]
[Result "1-0"]
[WhiteElo "2298"]
[BlackElo "2506"]
[TimeControl "180+1"]
[EndTime "8:27:50 PST"]
[Termination "Arlo2024 won on time"]

1. e4 {[%clk 0:03:00.9]} 1... c5 {[%clk 0:02:59.8]} 2. Nc3 {[%clk 0:03:01]} 2...
d6 {[%clk 0:02:57]} 3. g3 {[%clk 0:03:01.9]} 3... g6 {[%clk 0:02:55.1]} 4. Bg2
{[%clk 0:03:02.4]} 4... Bg7 {[%clk 0:02:55.8]} 5. d3 {[%clk 0:03:03]} 5... Nc6
{[%clk 0:02:56.5]} 6. Nge2 {[%clk 0:03:03]} 6... Rb8 {[%clk 0:02:57.1]} 7. O-O
{[%clk 0:03:03]} 7... e6 {[%clk 0:02:57.6]} 8. Be3 {[%clk 0:03:02.1]} 8... Nge7
{[%clk 0:02:58.3]} 9. Qd2 {[%clk 0:03:02.4]} 9... O-O {[%clk 0:02:58.9]} 10. Bh6
{[%clk 0:03:02.4]} 10... b6 {[%clk 0:02:57.6]} 11. Bxg7 {[%clk 0:03:01.7]} 11...
Kxg7 {[%clk 0:02:54.5]} 12. d4 {[%clk 0:03:02]} 12... cxd4 {[%clk 0:02:52.6]}
13. Nxd4 {[%clk 0:03:02.2]} 13... Nxd4 {[%clk 0:02:46]} 14. Qxd4+ {[%clk
0:03:01.7]} 14... e5 {[%clk 0:02:46.7]} 15. Qd2 {[%clk 0:03:01.1]} 15... Be6
{[%clk 0:01:54.8]} 16. f4 {[%clk 0:02:59.3]} 16... f6 {[%clk 0:01:54.2]} 17.
Rad1 {[%clk 0:02:56.9]} 17... Nc8 {[%clk 0:01:51.5]} 18. fxe5 {[%clk 0:02:52.1]}
18... fxe5 {[%clk 0:01:50.1]} 19. Rxf8 {[%clk 0:02:52]} 19... Qxf8 {[%clk
0:01:49.2]} 20. Rf1 {[%clk 0:02:52.9]} 20... Qd8 {[%clk 0:01:40.1]} 21. h4
{[%clk 0:02:47.6]} 21... h5 {[%clk 0:01:29.4]} 22. Kh2 {[%clk 0:02:45.4]} 22...
Rb7 {[%clk 0:01:27.9]} 23. Bh3 {[%clk 0:02:41.9]} 23... Bxh3 {[%clk 0:01:23.5]}
24. Kxh3 {[%clk 0:02:42.8]} 24... Rf7 {[%clk 0:01:15.8]} 25. Rxf7+ {[%clk
0:02:39.2]} 25... Kxf7 {[%clk 0:01:16.6]} 26. Qh6 {[%clk 0:02:38.4]} 26... Qf6
{[%clk 0:01:12]} 27. Kg2 {[%clk 0:02:14.3]} 27... Ne7 {[%clk 0:01:04.2]} 28.
Qh7+ {[%clk 0:02:07.3]} 28... Ke6 {[%clk 0:01:02.2]} 29. Qh6 {[%clk 0:01:59.3]}
29... Kd7 {[%clk 0:00:54]} 30. Qd2 {[%clk 0:01:57.2]} 30... Qe6 {[%clk
0:00:49.8]} 31. Qd3 {[%clk 0:01:52.6]} 31... Qg4 {[%clk 0:00:33.4]} 32. Qa6
{[%clk 0:01:47]} 32... Nc8 {[%clk 0:00:30.6]} 33. Qb7+ {[%clk 0:01:46.3]} 33...
Kd8 {[%clk 0:00:28.4]} 34. Qd5 {[%clk 0:01:18.9]} 34... Qd7 {[%clk 0:00:25.9]}
35. Qg8+ {[%clk 0:01:07]} 35... Qe8 {[%clk 0:00:25.7]} 36. Qg7 {[%clk
0:01:02.4]} 36... Ne7 {[%clk 0:00:20.7]} 37. Qf6 {[%clk 0:00:53.1]} 37... Kd7
{[%clk 0:00:04.5]} 38. Qg7 {[%clk 0:00:30.8]} 38... Kc8 {[%clk 0:00:02.8]} 39.
a4 {[%clk 0:00:26.1]} 1-0

[Event "Early-Titled-Tuesday-Blitz-February-06-2024"]
[Site "Chess.com"]
[Date "2024.02.06"]
[Round "3"]
[White "ChessFighter1975"]
[Black "djano"]
[Result "1/2-1/2"]
[WhiteElo "2434"]
[BlackElo "2616"]
[TimeControl "180+1"]
[EndTime "8:27:53 PST"]
[Termination "Game drawn by repetition"]

1. d4 {[%clk 0:03:00.9]} 1... Nf6 {[%clk 0:02:59.4]} 2. c4 {[%clk 0:03:01.3]}
2... g6 {[%clk 0:02:59.6]} 3. Nc3 {[%clk 0:03:01.4]} 3... Bg7 {[%clk 0:02:59.5]}
4. e4 {[%clk 0:03:02.2]} 4... d6 {[%clk 0:03:00.1]} 5. Nge2 {[%clk 0:03:03]}
5... O-O {[%clk 0:02:59.9]} 6. Ng3 {[%clk 0:03:03.7]} 6... h5 {[%clk 0:02:59.2]}
7. Bg5 {[%clk 0:03:03.2]} 7... Nh7 {[%clk 0:02:57.8]} 8. Be3 {[%clk 0:03:03.7]}
8... h4 {[%clk 0:02:57.9]} 9. Nge2 {[%clk 0:03:04.3]} 9... c5 {[%clk 0:02:54.4]}
10. d5 {[%clk 0:03:04.4]} 10... e6 {[%clk 0:02:54]} 11. h3 {[%clk 0:03:00.5]}
11... Na6 {[%clk 0:02:49.7]} 12. Qd2 {[%clk 0:03:00.4]} 12... Nc7 {[%clk
0:02:45.1]} 13. O-O-O {[%clk 0:02:56.3]} 13... exd5 {[%clk 0:02:45.1]} 14. Nxd5
{[%clk 0:02:46.2]} 14... Nxd5 {[%clk 0:02:36.2]} 15. Qxd5 {[%clk 0:02:45.6]}
15... Be6 {[%clk 0:02:35.1]} 16. Qd3 {[%clk 0:02:39.7]} 16... Qa5 {[%clk
0:02:27.1]} 17. Nc3 {[%clk 0:02:37.6]} 17... b5 {[%clk 0:02:22.7]} 18. cxb5
{[%clk 0:02:29]} 18... Bxa2 {[%clk 0:02:17.2]} 19. Nxa2 {[%clk 0:02:09.5]} 19...
Qxa2 {[%clk 0:02:18.1]} 20. Qb1 {[%clk 0:02:07.9]} 20... Qa4 {[%clk 0:02:10.4]}
21. Qc2 {[%clk 0:02:00.9]} 21... Qa1+ {[%clk 0:02:08.5]} 22. Qb1 {[%clk
0:02:01.3]} 22... Bxb2+ {[%clk 0:02:03.9]} 23. Kc2 {[%clk 0:02:00.5]} 23...
Qxb1+ {[%clk 0:02:03]} 24. Kxb1 {[%clk 0:01:55.1]} 24... Be5 {[%clk 0:02:01.1]}
25. f4 {[%clk 0:01:54.8]} 25... Bd4 {[%clk 0:01:50.5]} 26. Bxd4 {[%clk
0:01:54.4]} 26... cxd4 {[%clk 0:01:51.4]} 27. Rxd4 {[%clk 0:01:55]} 27... Rfe8
{[%clk 0:01:45.5]} 28. Bd3 {[%clk 0:01:54.3]} 28... Nf6 {[%clk 0:01:45.9]} 29.
Rc1 {[%clk 0:01:53]} 29... Re6 {[%clk 0:01:30.8]} 30. Rc6 {[%clk 0:01:27.9]}
30... Rae8 {[%clk 0:01:10.9]} 31. Rdxd6 {[%clk 0:01:16.2]} 31... Rxd6 {[%clk
0:01:11.8]} 32. Rxd6 {[%clk 0:01:16.2]} 32... Nxe4 {[%clk 0:01:12.3]} 33. Rd4
{[%clk 0:00:47.7]} 33... Nc5 {[%clk 0:01:04.3]} 34. Bc4 {[%clk 0:00:44.1]} 34...
Re4 {[%clk 0:00:45.1]} 35. Rxe4 {[%clk 0:00:41]} 35... Nxe4 {[%clk 0:00:46]} 36.
Kc2 {[%clk 0:00:38.2]} 36... Kf8 {[%clk 0:00:45.9]} 37. Kd3 {[%clk 0:00:38.7]}
37... Nd6 {[%clk 0:00:44.7]} 38. Kd4 {[%clk 0:00:37.2]} 38... Ke7 {[%clk
0:00:44.9]} 39. Bd3 {[%clk 0:00:37]} 39... Kd7 {[%clk 0:00:40.5]} 40. Kc5 {[%clk
0:00:35.7]} 40... Kc7 {[%clk 0:00:40.9]} 41. Bc2 {[%clk 0:00:30.7]} 41... Ne8
{[%clk 0:00:38.7]} 42. Bb3 {[%clk 0:00:28.2]} 42... Nd6 {[%clk 0:00:37.3]} 43.
Bc2 {[%clk 0:00:26.3]} 43... Nb7+ {[%clk 0:00:31.4]} 44. Kd5 {[%clk 0:00:24.4]}
44... Nd6 {[%clk 0:00:29.6]} 45. Bd3 {[%clk 0:00:24.8]} 45... Kd7 {[%clk
0:00:28.4]} 46. Ke5 {[%clk 0:00:24.4]} 46... Ke7 {[%clk 0:00:28.6]} 47. Kd5
{[%clk 0:00:24.4]} 47... Kd7 {[%clk 0:00:27.9]} 48. Ke5 {[%clk 0:00:24.8]} 48...
Ke7 {[%clk 0:00:27]} 49. Kd5 {[%clk 0:00:25.3]} 49... Kd7 {[%clk 0:00:23.2]}
1/2-1/2

[Event "Early-Titled-Tuesday-Blitz-February-06-2024"]
[Site "Chess.com"]
[Date "2024.02.06"]
[Round "3"]
[White "Agibileg"]
[Black "Denis_Makhnyov"]
[Result "0-1"]
[WhiteElo "2734"]
[BlackElo "3017"]
[TimeControl "180+1"]
[EndTime "8:27:55 PST"]
[Termination "Denis_Makhnyov won by checkmate"]

1. d4 {[%clk 0:03:00.9]} 1... d5 {[%clk 0:02:59]} 2. c4 {[%clk 0:03:00.9]} 2...
e6 {[%clk 0:02:59.7]} 3. Nc3 {[%clk 0:03:00.7]} 3... c6 {[%clk 0:02:59.9]} 4.
Nf3 {[%clk 0:03:00]} 4... dxc4 {[%clk 0:02:59.4]} 5. a4 {[%clk 0:02:58.4]} 5...
Bb4 {[%clk 0:02:57.2]} 6. e3 {[%clk 0:02:58.2]} 6... b5 {[%clk 0:02:56.9]} 7.
axb5 {[%clk 0:02:59.1]} 7... cxb5 {[%clk 0:02:56.8]} 8. Bd2 {[%clk 0:02:59.1]}
8... Bxc3 {[%clk 0:02:57.1]} 9. Bxc3 {[%clk 0:02:59.3]} 9... a5 {[%clk
0:02:56.9]} 10. b3 {[%clk 0:02:59.3]} 10... Bb7 {[%clk 0:02:57]} 11. bxc4 {[%clk
0:02:59.5]} 11... b4 {[%clk 0:02:57.6]} 12. Bb2 {[%clk 0:02:59.8]} 12... Nf6
{[%clk 0:02:58]} 13. Bd3 {[%clk 0:02:56.9]} 13... O-O {[%clk 0:02:57.7]} 14. O-O
{[%clk 0:02:57.5]} 14... Qc7 {[%clk 0:02:58]} 15. Nd2 {[%clk 0:02:56.4]} 15...
Nbd7 {[%clk 0:02:44.2]} 16. f3 {[%clk 0:02:56.2]} 16... Rfd8 {[%clk 0:02:33.6]}
17. Kh1 {[%clk 0:02:56.5]} 17... h6 {[%clk 0:02:23.8]} 18. Bc2 {[%clk
0:02:35.8]} 18... Nb6 {[%clk 0:02:19.1]} 19. Bb3 {[%clk 0:02:27.9]} 19... Bc6
{[%clk 0:02:13.7]} 20. d5 {[%clk 0:02:24.5]} 20... exd5 {[%clk 0:02:10.5]} 21.
Bxf6 {[%clk 0:02:25]} 21... gxf6 {[%clk 0:02:10]} 22. cxd5 {[%clk 0:02:22.1]}
22... Nxd5 {[%clk 0:01:17.3]} 23. Qb1 {[%clk 0:02:16.7]} 23... Kg7 {[%clk
0:01:12.9]} 24. Rc1 {[%clk 0:02:06.7]} 24... Nc3 {[%clk 0:01:11.1]} 25. Qc2
{[%clk 0:02:00.7]} 25... a4 {[%clk 0:01:07.9]} 26. Bc4 {[%clk 0:02:00.7]} 26...
Ra5 {[%clk 0:00:45.8]} 27. Nb1 {[%clk 0:01:40.7]} 27... Rh5 {[%clk 0:00:43.5]}
28. f4 {[%clk 0:01:28]} 28... Be4 {[%clk 0:00:41.3]} 29. Qf2 {[%clk 0:01:05.5]}
29... Qxc4 {[%clk 0:00:35.6]} 30. Nd2 {[%clk 0:00:53.3]} 30... Qd5 {[%clk
0:00:34.7]} 31. Nf1 {[%clk 0:00:50.8]} 31... Qb7 {[%clk 0:00:25.8]} 32. Ng3
{[%clk 0:00:38]} 32... Rhd5 {[%clk 0:00:25.5]} 33. f5 {[%clk 0:00:22.9]} 33...
Rd2 {[%clk 0:00:19.9]} 34. Nh5+ {[%clk 0:00:23]} 34... Kf8 {[%clk 0:00:16.4]}
35. Qh4 {[%clk 0:00:19.2]} 35... Rxg2 {[%clk 0:00:16.2]} 36. Nxf6 {[%clk
0:00:12.1]} 36... Rg4+ {[%clk 0:00:15.1]} 37. Nxe4 {[%clk 0:00:11.7]} 37...
Qxe4# {[%clk 0:00:16]} 0-1

[Event "Early-Titled-Tuesday-Blitz-February-06-2024"]
[Site "Chess.com"]
[Date "2024.02.06"]
[Round "3"]
[White "Crazy_girl99"]
[Black "h4parah5"]
[Result "0-1"]
[WhiteElo "2613"]
[BlackElo "2928"]
[TimeControl "180+1"]
[EndTime "8:27:55 PST"]
[Termination "h4parah5 won by resignation"]

1. e4 {[%clk 0:02:56.1]} 1... c5 {[%clk 0:02:59.5]} 2. Nf3 {[%clk 0:02:56.3]}
2... e6 {[%clk 0:02:59.1]} 3. d4 {[%clk 0:02:55.2]} 3... cxd4 {[%clk 0:03:00]}
4. Nxd4 {[%clk 0:02:55.4]} 4... a6 {[%clk 0:03:00.6]} 5. c4 {[%clk 0:02:55.3]}
5... Nf6 {[%clk 0:02:59.4]} 6. Nc3 {[%clk 0:02:55.6]} 6... Qc7 {[%clk
0:02:59.6]} 7. a3 {[%clk 0:02:55.2]} 7... Nxe4 {[%clk 0:02:58.1]} 8. Nxe4 {[%clk
0:02:52.5]} 8... Qe5 {[%clk 0:02:58.5]} 9. Be3 {[%clk 0:02:17.6]} 9... Qxe4
{[%clk 0:02:57.1]} 10. Be2 {[%clk 0:02:17.1]} 10... Qxg2 {[%clk 0:02:49.2]} 11.
Bf3 {[%clk 0:02:17.2]} 11... Qg6 {[%clk 0:02:48.4]} 12. Qd2 {[%clk 0:02:07.4]}
12... Nc6 {[%clk 0:02:46.7]} 13. O-O-O {[%clk 0:02:02.8]} 13... Ne5 {[%clk
0:02:43.9]} 14. Be2 {[%clk 0:02:02.1]} 14... Nc6 {[%clk 0:02:25.2]} 15. Rhg1
{[%clk 0:02:00.7]} 15... Qf6 {[%clk 0:02:24.3]} 16. Nxc6 {[%clk 0:01:54.4]}
16... bxc6 {[%clk 0:02:25.2]} 17. Bd4 {[%clk 0:01:53.8]} 17... e5 {[%clk
0:02:21.3]} 18. Bc3 {[%clk 0:01:40.7]} 18... d6 {[%clk 0:02:16.6]} 19. Qe3
{[%clk 0:01:19.3]} 19... c5 {[%clk 0:02:07.3]} 20. Bf3 {[%clk 0:01:12.6]} 20...
Ra7 {[%clk 0:02:06.1]} 21. Kb1 {[%clk 0:01:00.6]} 21... Be7 {[%clk 0:02:02.8]}
22. Bc6+ {[%clk 0:00:55.2]} 22... Bd7 {[%clk 0:02:01.5]} 23. Bxd7+ {[%clk
0:00:50.5]} 23... Rxd7 {[%clk 0:01:59.9]} 24. f4 {[%clk 0:00:50.6]} 24... Qxf4
{[%clk 0:01:46.3]} 25. Qxf4 {[%clk 0:00:42.2]} 25... exf4 {[%clk 0:01:47.2]} 26.
Rxg7 {[%clk 0:00:42.1]} 26... Rf8 {[%clk 0:01:16.3]} 27. Rf1 {[%clk 0:00:39.7]}
27... d5 {[%clk 0:01:14.4]} 28. cxd5 {[%clk 0:00:39.3]} 28... Rxd5 {[%clk
0:01:15.3]} 29. Rxf4 {[%clk 0:00:34.6]} 29... Rh5 {[%clk 0:01:15]} 30. Re4
{[%clk 0:00:33.4]} 30... Kd7 {[%clk 0:01:14.3]} 31. Rg2 {[%clk 0:00:27.8]} 31...
Bd6 {[%clk 0:01:13.9]} 32. Rd2 {[%clk 0:00:23.8]} 32... Rxh2 {[%clk 0:01:10]}
33. Rd1 {[%clk 0:00:18.5]} 33... Rg8 {[%clk 0:00:57.3]} 34. Rf4 {[%clk
0:00:13.4]} 34... Rg6 {[%clk 0:00:45.8]} 35. Rxf7+ {[%clk 0:00:13.3]} 35... Kc6
{[%clk 0:00:46.4]} 36. Ra7 {[%clk 0:00:12.9]} 36... Kb6 {[%clk 0:00:44.3]} 37.
Rd7 {[%clk 0:00:13.2]} 37... Bg3 {[%clk 0:00:42.7]} 38. a4 {[%clk 0:00:11.4]}
38... h5 {[%clk 0:00:40.8]} 39. a5+ {[%clk 0:00:11.4]} 39... Kc6 {[%clk
0:00:40.6]} 40. Ra7 {[%clk 0:00:11.6]} 40... Kb5 {[%clk 0:00:40.3]} 41. Rb7+
{[%clk 0:00:11.8]} 41... Ka4 {[%clk 0:00:32.4]} 42. b3+ {[%clk 0:00:07.7]} 42...
Ka3 {[%clk 0:00:31.7]} 43. Bb2+ {[%clk 0:00:08.4]} 43... Rxb2+ {[%clk
0:00:30.5]} 44. Ka1 {[%clk 0:00:06.9]} 44... Be5 {[%clk 0:00:27.7]} 0-1

[Event "Early-Titled-Tuesday-Blitz-February-06-2024"]
[Site "Chess.com"]
[Date "2024.02.06"]
[Round "3"]
[White "Evgeny81"]
[Black "secrethawk1"]
[Result "0-1"]
[WhiteElo "2704"]
[BlackElo "2492"]
[TimeControl "180+1"]
[EndTime "8:27:55 PST"]
[Termination "secrethawk1 won on time"]

1. e4 {[%clk 0:03:00.9]} 1... c6 {[%clk 0:02:53.2]} 2. d4 {[%clk 0:02:59.6]}
2... d5 {[%clk 0:02:54.1]} 3. e5 {[%clk 0:02:58.2]} 3... Bf5 {[%clk 0:02:53.9]}
4. h4 {[%clk 0:02:56.3]} 4... h5 {[%clk 0:02:49.5]} 5. Bd3 {[%clk 0:02:50.9]}
5... Bxd3 {[%clk 0:02:49]} 6. Qxd3 {[%clk 0:02:49.5]} 6... e6 {[%clk 0:02:49.3]}
7. Bg5 {[%clk 0:02:49.6]} 7... Be7 {[%clk 0:02:47.7]} 8. Bxe7 {[%clk 0:02:47.2]}
8... Nxe7 {[%clk 0:02:48.6]} 9. Nd2 {[%clk 0:02:46.6]} 9... Nf5 {[%clk
0:02:48.5]} 10. Ngf3 {[%clk 0:02:41.9]} 10... O-O {[%clk 0:02:34]} 11. g3 {[%clk
0:02:36.9]} 11... c5 {[%clk 0:02:32.4]} 12. c3 {[%clk 0:02:36.4]} 12... Nc6
{[%clk 0:02:32.1]} 13. dxc5 {[%clk 0:02:29.1]} 13... Qc7 {[%clk 0:02:29.2]} 14.
Qe2 {[%clk 0:02:26.8]} 14... d4 {[%clk 0:02:10.6]} 15. c4 {[%clk 0:02:07.5]}
15... d3 {[%clk 0:01:40.6]} 16. Qe4 {[%clk 0:02:01.2]} 16... Rad8 {[%clk
0:01:34.7]} 17. Kf1 {[%clk 0:01:41.4]} 17... Nb4 {[%clk 0:00:59]} 18. Nb3 {[%clk
0:01:12.1]} 18... Nc2 {[%clk 0:00:57]} 19. Rd1 {[%clk 0:01:08.8]} 19... Nce3+
{[%clk 0:00:54.9]} 20. Ke1 {[%clk 0:01:00.3]} 20... Nxd1 {[%clk 0:00:54.2]} 21.
Kxd1 {[%clk 0:01:01.2]} 21... a5 {[%clk 0:00:46.5]} 22. a4 {[%clk 0:00:36.3]}
22... Qd7 {[%clk 0:00:44.2]} 23. Nfd2 {[%clk 0:00:12.9]} 23... Qxa4 {[%clk
0:00:41.8]} 24. Ke1 {[%clk 0:00:12.6]} 24... Qb4 {[%clk 0:00:27.2]} 25. Kd1
{[%clk 0:00:03.2]} 25... a4 {[%clk 0:00:26.1]} 26. Nc1 {[%clk 0:00:03.8]} 26...
Qxb2 {[%clk 0:00:23]} 27. Nxd3 {[%clk 0:00:04.1]} 27... Qc3 {[%clk 0:00:19.1]}
28. Ke2 {[%clk 0:00:04.6]} 28... Nd4+ {[%clk 0:00:15.9]} 29. Ke3 {[%clk
0:00:05.3]} 29... Nc2+ {[%clk 0:00:09.2]} 30. Ke2 {[%clk 0:00:05.6]} 30... Rd4
{[%clk 0:00:08.6]} 31. Qf3 {[%clk 0:00:03.9]} 31... Rfd8 {[%clk 0:00:08]} 32.
Rc1 {[%clk 0:00:02.2]} 32... Rxd3 {[%clk 0:00:07.3]} 0-1

[Event "Early-Titled-Tuesday-Blitz-February-06-2024"]
[Site "Chess.com"]
[Date "2024.02.06"]
[Round "3"]
[White "viktorskliarov"]
[Black "InitiatingASC"]
[Result "1-0"]
[WhiteElo "2635"]
[BlackElo "2431"]
[TimeControl "180+1"]
[EndTime "8:27:56 PST"]
[Termination "viktorskliarov won by resignation"]

1. e4 {[%clk 0:03:00.9]} 1... c5 {[%clk 0:02:58.4]} 2. Nf3 {[%clk 0:03:00.7]}
2... Nc6 {[%clk 0:02:54.8]} 3. Bb5 {[%clk 0:03:00.2]} 3... Nf6 {[%clk
0:02:38.5]} 4. Bxc6 {[%clk 0:02:54.2]} 4... bxc6 {[%clk 0:02:36.3]} 5. d3 {[%clk
0:02:52]} 5... d6 {[%clk 0:02:21.1]} 6. e5 {[%clk 0:02:48.1]} 6... Nd5 {[%clk
0:02:19.4]} 7. h3 {[%clk 0:02:42.5]} 7... f6 {[%clk 0:01:52.9]} 8. exd6 {[%clk
0:01:59.6]} 8... exd6 {[%clk 0:01:44.5]} 9. O-O {[%clk 0:01:53]} 9... Kf7 {[%clk
0:01:40.5]} 10. c4 {[%clk 0:01:30.2]} 10... Nc7 {[%clk 0:01:38.5]} 11. Nc3
{[%clk 0:01:30.5]} 11... g6 {[%clk 0:01:36.8]} 12. d4 {[%clk 0:01:21.5]} 12...
cxd4 {[%clk 0:01:33.1]} 13. Qxd4 {[%clk 0:01:17.1]} 13... Bg7 {[%clk 0:01:10.2]}
14. Rd1 {[%clk 0:01:01.9]} 14... Ne8 {[%clk 0:01:08.8]} 15. Bf4 {[%clk
0:00:53.9]} 15... Be6 {[%clk 0:00:58.4]} 16. Ne4 {[%clk 0:00:36.1]} 16... Rf8
{[%clk 0:00:44]} 17. Nxd6+ {[%clk 0:00:34.4]} 17... Kg8 {[%clk 0:00:37]} 18.
Nxe8 {[%clk 0:00:30.1]} 18... Qxe8 {[%clk 0:00:36.5]} 19. b3 {[%clk 0:00:29.2]}
19... Rd8 {[%clk 0:00:19]} 20. Qxa7 {[%clk 0:00:28.7]} 20... Bf5 {[%clk
0:00:16.7]} 21. Re1 {[%clk 0:00:24]} 21... Qf7 {[%clk 0:00:15.9]} 22. Qxf7+
{[%clk 0:00:23.1]} 22... Rxf7 {[%clk 0:00:16.8]} 23. Rad1 {[%clk 0:00:23.1]}
23... Ra8 {[%clk 0:00:15.9]} 24. Rd2 {[%clk 0:00:19.4]} 24... Rfa7 {[%clk
0:00:16]} 25. Nd4 {[%clk 0:00:16.9]} 25... Rxa2 {[%clk 0:00:12.8]} 26. Rxa2
{[%clk 0:00:15.6]} 26... Rxa2 {[%clk 0:00:13.7]} 27. Nxf5 {[%clk 0:00:15.6]}
27... gxf5 {[%clk 0:00:14.6]} 28. Re6 {[%clk 0:00:15.1]} 28... Rb2 {[%clk
0:00:13.9]} 29. Rxc6 {[%clk 0:00:15.1]} 29... Rxb3 {[%clk 0:00:14.1]} 30. Rc7
{[%clk 0:00:12.9]} 30... Bf8 {[%clk 0:00:13]} 31. c5 {[%clk 0:00:11.4]} 31...
Rc3 {[%clk 0:00:13.3]} 32. c6 {[%clk 0:00:11.6]} 32... Bc5 {[%clk 0:00:13]} 33.
Rc8+ {[%clk 0:00:09.1]} 33... Kf7 {[%clk 0:00:12.1]} 34. c7 {[%clk 0:00:09.1]}
34... Bb6 {[%clk 0:00:12.1]} 35. Rh8 {[%clk 0:00:08.1]} 1-0